Cogmind - Beta 11.1 @@@ ROGUE MODE // 2022.11.10 @ 19:22:34 Player: BRiNK Result: Destroyed by G-47 Trooper with Particle Gun Performance ------------- Evolutions (1) 500 Regions Visited (6) 1200 Robots Destroyed (24) 120 Value Destroyed (585) 585 Prototype IDs (1) 20 Alien Tech Used (0) 0 Bonus (306) 306 TOTAL SCORE: 2731 Bonus ------- High Alert Combat Kills 6 Aligned with FarCom 300 Cogmind --------- Core Integrity 0/400 Matter 294/300 Energy 121/125 System Corruption 4% Temperature Cool (11) Movement Walking (260) Ox2 Location -8/Mines Parts ------- > --- POWER (1) -------- Light Ion Engine > --- PROPULSION (2) --- Aluminum Leg Aluminum Leg > --- UTILITY (3) ------ High-capacity Storage Unit Visual Processing Unit Targeting Computer > --- WEAPON (3) ------- Hammer > --- INVENTORY (20) --- Light Ion Engine Light Treads Medium Battery (150) Peak State ------------ > --- POWER ------------ Reinforced Ion Engine > --- PROPULSION ------- Light Treads Improved Treads > --- UTILITY ---------- Heat Sink Large Storage Unit Visual Processing Unit > --- WEAPON ----------- Assault Rifle Light Assault Rifle Light Assault Rifle > --- INVENTORY -------- Chronowheel EM Pulse Gun Hammer [Rating: 13] Favorites ----------- Power Reinforced Ion Engine Engine Reinforced Ion Engine Propulsion Light Treads Treads Light Treads Leg Aluminum Leg Utility Visual Processing Unit Device Heat Sink Storage Large Storage Unit Processor Visual Processing Unit Weapon Light Assault Rifle Energy Gun EM Pulse Gun Ballistic Gun Light Assault Rifle Impact Weapon Hammer Build | -11 -10 -10 -9 -9 -9 -8 ------- Run | Scr Mat Min Mat Min Exi Min Slots Evolved 2 | . . . 2 . . . Power . | . . . . . . . Propulsion . | . . . . . . . Utility 1 | . . . 1 . . . Weapon 1 | . . . 1 . . . Parts Attached 23 | 5 3 . 7 . 1 7 Power 4 | 1 1 . 1 . . 1 Engine 4 | 1 1 . 1 . . 1 Core . | . . . . . . . Reactor . | . . . . . . . Propulsion 6 | 2 . . 2 . . 2 Treads 4 | 2 . . 2 . . . Leg 2 | . . . . . . 2 Wheel . | . . . . . . . Hover . | . . . . . . . Flight . | . . . . . . . Utility 7 | 1 1 . 3 . 1 1 Device 2 | . . . 2 . . . Storage 3 | 1 1 . . . 1 . Processor 2 | . . . 1 . . 1 Hackware . | . . . . . . . Protection . | . . . . . . . Artifact . | . . . . . . . Weapon 6 | 1 1 . 1 . . 3 Energy Gun 1 | . . . . . . 1 Energy Cannon . | . . . . . . . Ballistic Gun 4 | 1 1 . 1 . . 1 Ballistic Cannon . | . . . . . . . Launcher . | . . . . . . . Special Weapon . | . . . . . . . Impact Weapon 1 | . . . . . . 1 Slashing Weapon . | . . . . . . . Piercing Weapon . | . . . . . . . Special Melee Weapon . | . . . . . . . Unidentified Prototypes 1 | . . . . . 1 . Parts Lost 7 | . . . 1 . . 6 Power 1 | . . . . . . 1 Propulsion 1 | . . . . . . 1 Utility 1 | . . . 1 . . . Weapon 4 | . . . . . . 4 Highest Loss Streak 6 | . . . 1 . . 6 To Critical Strikes . | . . . . . . . Average Slot Usage (%) 88 | . 85 85 91 100 92 85 Engine 11 | . 14 14 11 11 11 10 Treads 18 | . 28 28 22 22 22 12 Leg 3 | . . . . . . 9 Device 2 | . . . 9 11 3 . Storage 11 | . 14 14 11 11 11 11 Processor 12 | . . . 4 11 11 19 Energy Gun 1 | . . . . . . 3 Ballistic Gun 23 | . 28 28 33 33 33 13 Impact Weapon 2 | . . . . . . 5 Naked Turns . | . . . . . . . Heaviest Build 54 | 12 28 26 35 35 54 54 Greatest Support 43 | 40 40 40 43 43 43 43 Greatest Overweight (x) 2 | 2 . . . . 1 2 Average Overweight (x) . | . . . . . . 1 Largest Inventory Capacity 20 | 8 15 15 15 15 20 20 Average Capacity 16 | 7 13 15 15 15 15 20 Most Carried 5 | 3 5 5 5 2 4 5 Average Carried 3 | 2 3 5 3 2 2 3 Final Capacity 20 | 8 15 15 15 15 20 20 Final Carried 5 | 3 5 5 2 2 4 3 Class Distribution -------------------- 42% | Skirmisher 19% | Mutant 18% | Scavenger-Mutant 13% | Scavenger-Skirmisher 5% | Gunner Dominant Class ---------------- Mutant | -10/Materials Mutant | -10/Mines Skirmisher | -9/Materials Skirmisher | -9/Mines Skirmisher | -9/Exiles Scavenger-Mutant | -8/Mines Resources | -11 -10 -10 -9 -9 -9 -8 ----------- Run | Scr Mat Min Mat Min Exi Min Matter Collected 798 | 230 50 64 209 . . 245 Remotely . | . . . . . . . Salvage Created 918 | . 50 138 490 . . 240 Parts 54 | . 4 4 31 . . 15 Haulers Intercepted . | . . . . . . . Recyclers Shooed 2 | . . . 1 . . 1 Parts Field Recycled . | . . . . . . . Retrieved Matter . | . . . . . . . Parts Self-Destructed . | . . . . . . . Prevented . | . . . . . . . Kills | -11 -10 -10 -9 -9 -9 -8 ------- Run | Scr Mat Min Mat Min Exi Min Combat Hostiles Destroyed 21 | . 3 . 14 . . 4 Melee 2 | . . . . . . 2 Guns 18 | . 3 . 14 . . 1 Classes Destroyed 8 | . 1 . 4 . . 3 Worker 1 | . . . . . . 1 Tunneler 1 | . . . . . . 1 Recycler 1 | . . . 1 . . . Swarmer 10 | . 3 . 7 . . . Grunt 7 | . . . 4 . . 3 Brawler 1 | . . . 1 . . . Sentry 2 | . . . 2 . . . Hunter 1 | . . . . . . 1 Best Kill Streak 8 | . 3 . 8 . . 3 Combat Bots Only 7 | . 3 . 7 . . 3 Max Kills in Single Turn 1 | . 1 . 1 . . 1 Gunslinging . | . . . . . . . Exploded . | . . . . . . . Melee 1 | . . . . . . 1 Uniques/NPCs Destroyed . | . . . . . . . Combat | -11 -10 -10 -9 -9 -9 -8 -------- Run | Scr Mat Min Mat Min Exi Min Damage Taken 1532 | . 105 . 493 . . 934 Core 426 | . 23 . 72 . . 331 Absorbed by Shields . | . . . . . . . Core Remaining (%) 95 | 100 . 90 . . . . Volleys Fired 68 | . 7 9 37 . . 15 Largest 3 | . 2 2 3 . . 3 Hottest 80 | . 40 40 60 . . 80 Shots Fired 185 | . 14 18 110 . . 43 Gun 185 | . 14 18 110 . . 43 Cannon . | . . . . . . . Launcher . | . . . . . . . Special . | . . . . . . . Kinetic 179 | . 14 18 110 . . 37 Thermal . | . . . . . . . Explosive . | . . . . . . . Electromagnetic 6 | . . . . . . 6 Robot Hit Streak 9 | . 6 4 9 . . 8 Robot Miss Streak 7 | . 2 1 7 . . 2 Penetration Max . | . . . . . . . Secondary Targets 5 | . . . 5 . . . Max Gunslinging Chain 1 | . . . 1 . . . Shots Hit Robots 126 | . 8 13 61 . . 44 Core Hits 47 | . 4 4 28 . . 11 Critical Kills 2 | . . . 1 . . 1 Critical Parts Destroyed 2 | . . . . . . 2 Critical Strikes 5 | . . . 1 . . 4 Destroy 1 | . . . 1 . . . Corrupt 1 | . . . . . . 1 Smash 3 | . . . . . . 3 Melee Attacks 19 | . . . . . . 19 Impact 19 | . . . . . . 19 Slashing . | . . . . . . . Piercing . | . . . . . . . Sneak Attacks 4 | . . . . . . 4 Combat Hostiles . | . . . . . . . Follow-up Attacks . | . . . . . . . Damage Inflicted 1589 | . 90 134 649 . . 716 Guns 1023 | . 90 134 597 . . 202 Cannons . | . . . . . . . Explosions 52 | . . . 52 . . . Melee 514 | . . . . . . 514 Ramming . | . . . . . . . Kinetic 995 | . 90 134 597 . . 174 Thermal . | . . . . . . . Explosive . | . . . . . . . Electromagnetic 80 | . . . 52 . . 28 Impact 514 | . . . . . . 514 Slashing . | . . . . . . . Piercing . | . . . . . . . Highest Corruption 4 | . . . 4 4 4 4 Average Corruption 4 | . . . 4 4 4 4 Corruption Purged . | . . . . . . . Corruption Blocked . | . . . . . . . Effects 52 | . . . 5 1 15 31 Message Errors 11 | . . . . . 4 7 Matter Fused 13 | . . . 2 . 5 6 Heat Flow Errors 2 | . . . . . 1 1 Energy Discharges 8 | . . . 1 1 1 5 Data Loss (minor) 9 | . . . 1 . 1 7 Data Loss (major) 4 | . . . . . 1 3 Alerts 4 | . . . . . 2 2 Weapon Failures 1 | . . . 1 . . . Overload Shots . | . . . . . . . Overflow Damage 68 | . . . . . . 68 Projectiles . | . . . . . . . Explosions . | . . . . . . . Melee 68 | . . . . . . 68 Knockbacks . | . . . . . . . Impact . | . . . . . . . Kinetic . | . . . . . . . Secondary . | . . . . . . . Self-Inflicted Damage 26 | . . . 26 . . . Shots 1 | . . . 1 . . . Rammed . | . . . . . . . Targets Rammed . | . . . . . . . Kicked . | . . . . . . . Crushed . | . . . . . . . Highest Temperature 266 | . . . 16 . 212 266 Average Temperature 65 | . . . 3 . 111 103 Received Heat Transfer 558 | . 18 . 99 . . 441 Siege Activations . | . . . . . . . Robots Corrupted . | . . . . . . . Combat Hostiles . | . . . . . . . Parts Fried . | . . . . . . . Impact Corruptions 3 | . . . . . . 3 Robots Melted . | . . . . . . . Combat Hostiles . | . . . . . . . Parts Melted . | . . . . . . . Heat Transferred . | . . . . . . . Parts Sabotaged . | . . . . . . . Parts Stolen . | . . . . . . . Parts Stripped . | . . . . . . . Power Chain Reactions . | . . . . . . . Missiles Intercepted . | . . . . . . . Alert | -11 -10 -10 -9 -9 -9 -8 ------- Run | Scr Mat Min Mat Min Exi Min Peak Influence 459 | . 136 67 459 112 . 60 Initial 112 | . . 52 26 112 . . Average 49 | . 55 56 155 112 . 10 Maximum Alert Level 2 | . . . 2 . . . Low Security (%) 95 | 100 100 100 73 100 . 100 Level 1 2 | . . . 15 . . . Level 2 1 | . . . 10 . . . Level 3 . | . . . . . . . Level 4 . | . . . . . . . Level 5 . | . . . . . . . High Security . | . . . . . . . Max Security . | . . . . . . . Squads Dispatched 2 | . 1 . 1 . . . Investigation 1 | . 1 . . . . . Extermination . | . . . . . . . Reinforcement 1 | . . . 1 . . . Assault . | . . . . . . . Garrison . | . . . . . . . Intercept . | . . . . . . . Searches Triggered . | . . . . . . . Construction Impeded . | . . . . . . . Haulers Reinforced . | . . . . . . . Active Scanning Responses . | . . . . . . . Cargo Convoy Interrupts . | . . . . . . . Stealth | -11 -10 -10 -9 -9 -9 -8 --------- Run | Scr Mat Min Mat Min Exi Min Distress Signals 1 | . . . 1 . . . Communications Jammed . | . . . . . . . Distress Signals . | . . . . . . . Times Spotted 39 | . 9 . 23 . . 7 Peak Tracking Total 10 | . 5 . 10 . . 3 Tactical Retreats 2 | . 1 . 1 . . . Traps | -11 -10 -10 -9 -9 -9 -8 ------- Run | Scr Mat Min Mat Min Exi Min Traps Triggered 1 | . 1 . . . . . Indirectly . | . . . . . . . Trap Hack Attempts . | . . . . . . . Triggered . | . . . . . . . Disarmed . | . . . . . . . Reprogrammed . | . . . . . . . Reused . | . . . . . . . Traps Extracted . | . . . . . . . Installed . | . . . . . . . Triggered . | . . . . . . . Machines | -11 -10 -10 -9 -9 -9 -8 ---------- Run | Scr Mat Min Mat Min Exi Min Machines Disabled 1 | . . . 1 . . . Max in Single Turn 1 | . . . 1 . . . Machines Sabotaged . | . . . . . . . Garrisons Compromised . | . . . . . . . Overloaded Fab Kills . | . . . . . . . Hacking | -11 -10 -10 -9 -9 -9 -8 --------- Run | Scr Mat Min Mat Min Exi Min Machines Accessed 5 | . 1 . 1 . 3 . Terminals 2 | . 1 . 1 . . . Fabricators . | . . . . . . . Repair Stations . | . . . . . . . Recycling Units . | . . . . . . . Scanalyzers . | . . . . . . . Garrison Access . | . . . . . . . Total Hacks 33 | . 5 . 2 . 26 . Successful 30 | . 3 . 1 . 26 . Failed 3 | . 2 . 1 . . . Catastrophic 1 | . . . 1 . . . Database Lockouts . | . . . . . . . Manual 8 | . 5 . 2 . 1 . Terminals 7 | . 5 . 2 . . . Fabricators . | . . . . . . . Repair Stations . | . . . . . . . Recycling Units . | . . . . . . . Scanalyzers . | . . . . . . . Garrison Access . | . . . . . . . Terminal Hacks 30 | . 3 . 1 . 26 . Record 26 | . . . . . 26 . Level Access Points 1 | . 1 . . . . . Branch Access Points 1 | . 1 . . . . . Emergency Access Points 1 | . 1 . . . . . Patrol Status 1 | . . . 1 . . . Fabricator Hacks . | . . . . . . . Repair Station Hacks . | . . . . . . . Recycling Unit Hacks . | . . . . . . . Scanalyzer . | . . . . . . . Garrison Access Hacks . | . . . . . . . Unauthorized Hacks . | . . . . . . . Terminals . | . . . . . . . Fabricators . | . . . . . . . Repair Stations . | . . . . . . . Recycling Units . | . . . . . . . Scanalyzers . | . . . . . . . Garrison Access . | . . . . . . . Data Cores Recovered . | . . . . . . . Used . | . . . . . . . Hacking Detections 1 | . . . 1 . . . Full Trace Events . | . . . . . . . Feedback Events . | . . . . . . . Feedback Blocked . | . . . . . . . Robot Schematics Acquired . | . . . . . . . Robots Built . | . . . . . . . Authchips . | . . . . . . . Time . | . . . . . . . Total Robot Build Rating . | . . . . . . . Part Schematics Acquired . | . . . . . . . Parts Built . | . . . . . . . Authchips . | . . . . . . . Time . | . . . . . . . Total Part Build Rating . | . . . . . . . Parts Repaired . | . . . . . . . Time . | . . . . . . . Parts Recycled . | . . . . . . . Recycled Matter . | . . . . . . . Retrieved Matter . | . . . . . . . Retrieved Components . | . . . . . . . Parts Scanalyzed . | . . . . . . . Part Schematics Acquired . | . . . . . . . Parts Damaged . | . . . . . . . Bothacking | -11 -10 -10 -9 -9 -9 -8 ------------ Run | Scr Mat Min Mat Min Exi Min Used RIF Installer . | . . . . . . . Robots Hacked . | . . . . . . . Non-combat . | . . . . . . . Combat . | . . . . . . . Robot Hacks Applied . | . . . . . . . Relay Couplers Released . | . . . . . . . Fabnet Peak Effective % . | . . . . . . . Robots Rewired . | . . . . . . . Allies Hacked . | . . . . . . . Hacks Repelled . | . . . . . . . Allies | -11 -10 -10 -9 -9 -9 -8 -------- Run | Scr Mat Min Mat Min Exi Min Total Allies . | . . . . . . . Largest Group . | . . . . . . . Highest-Rated Group . | . . . . . . . Highest-Rated Ally . | . . . . . . . Total Orders . | . . . . . . . Ally Attacks . | . . . . . . . Total Damage . | . . . . . . . Kills . | . . . . . . . Allies Corrupted . | . . . . . . . Allies Melted . | . . . . . . . Intel | -11 -10 -10 -9 -9 -9 -8 ------- Run | Scr Mat Min Mat Min Exi Min Robot Analysis Total . | . . . . . . . Derelict Logs Recovered 1 | . . 1 . . . . Drone Launches . | . . . . . . . Drone Recoveries . | . . . . . . . Exploration | -11 -10 -10 -9 -9 -9 -8 ------------- Run | Scr Mat Min Mat Min Exi Min Turns Passed 3057 | 68 288 184 430 66 742 1279 Spaces Moved 1429 | 39 162 100 193 42 432 461 Core 8 | 8 . . . . . . Treads 1218 | 31 162 100 193 42 432 258 Legs 203 | . . . . . . 203 Wheels . | . . . . . . . Hover . | . . . . . . . Flight . | . . . . . . . Fastest Speed 50 | 50 160 160 160 160 160 240 Average Speed 192 | 145 160 160 160 160 171 250 Slowest Speed 320 | 160 160 160 160 160 240 320 Overloaded Moves . | . . . . . . . Propulsion Burnouts . | . . . . . . . Robots Hopped . | . . . . . . . Cave-ins Triggered . | . . . . . . . Time Travels 1 | . . . . . 1 . Exploration Rate (%) 36 | 3 34 33 24 10 79 72 Regions Visited 6 Branch Regions 4 Pre-discovered Areas . | . . . . . . . Known Exits Taken 2 | . 1 1 . . . . Unknown Exits Taken 4 | 1 . . 1 1 1 . Scrap Searched . | . . . . . . . Spaces Dug . | . . . . . . . Terrain Destroyed . | . . . . . . . Melee . | . . . . . . . Projectile . | . . . . . . . AOE . | . . . . . . . Terrain Rammed . | . . . . . . . Walls Destroyed . | . . . . . . . Machines Disabled . | . . . . . . . Actions | -11 -10 -10 -9 -9 -9 -8 --------- Run | Scr Mat Min Mat Min Exi Min Total 1587 | 51 178 108 247 41 436 526 Wait 20 | . 2 . . . . 18 Move 1423 | 38 161 99 192 41 431 461 Hop . | . . . . . . . Pick Up 26 | 8 4 . 6 . 3 5 Fast Attach . | . . . . . . . Attach 16 | 5 1 . 5 . . 5 Detach . | . . . . . . . Swap 7 | . 2 . 2 . 1 2 Drop 8 | . 1 . 5 . 1 1 Fire 68 | . 7 9 37 . . 15 Melee 19 | . . . . . . 19 Ram . | . . . . . . . Kick . | . . . . . . . Crush . | . . . . . . . Escape Stasis . | . . . . . . . Rewire . | . . . . . . . Trap . | . . . . . . . Miscellaneous . | . . . . . . . Route ------- -11/Scrapyard -10/Materials (discovered 4 exits: Mat x3 / *Min) -10/Mines -9/Materials -9/Mines -9/Exiles -8/Mines History --------- Turn | Location | Event 2 | -11/Scrapyard | Met Revision 17 8 | -11/Scrapyard | Discovered new exit (range 15) 69 | -11/Scrapyard | Entered Materials 162 | -10/Materials | Identified exit to Mines 162 | -10/Materials | Identified exit to Materials 302 | -10/Materials | Build established: Mutant 357 | -10/Materials | Entered Mines 541 | -10/Mines | Entered Materials 541 | -9/Materials | Evolved 2 slots: Utility x1, Weapon x1 914 | -9/Materials | Discovered new exit (range 17) 921 | -9/Materials | Destroyed 7 combat bots 971 | -9/Materials | Entered Mines 980 | -9/Mines | Met a Derelict bent on vengeance 1031 | -9/Mines | Deemed a non-threat by the Exiles lab entrance 1031 | -9/Mines | Discovered new exit (range 5) 1037 | -9/Mines | Entered Exiles 1076 | -9/Exiles | Met 8R-AWN 1094 | -9/Exiles | Build established: Skirmisher 1103 | -9/Exiles | Met EX-HEX 1154 | -9/Exiles | Met EX-BIN 1193 | -9/Exiles | Aligned with FarCom system 1194 | -9/Exiles | Given EX-Vault access code 1271 | -9/Exiles | Opened EX-Vault 1281 | -9/Exiles | Found Prototype Device 1282 | -9/Exiles | Identified Chronowheel 1282 | -9/Exiles | Activated Chronowheel 1282 | -9/Exiles | Spacetime reconverged on an earlier point 1317 | -9/Exiles | Warned to stay clear of 0b10 Research branches 1360 | -9/Exiles | Met EX-DEC 1475 | -9/Exiles | Visited The Gauntlet 1748 | -9/Exiles | Discovered new exit (range 15) 1779 | -9/Exiles | Entered Mines 2329 | -8/Mines | Build established: Scavenger-Skirmisher 2442 | -8/Mines | Core integrity fell below 50% 2466 | -8/Mines | Core integrity fell below 20% 2494 | -8/Mines | Lost 6 parts (1p1n4w) 2806 | -8/Mines | Build established: Scavenger-Mutant 3058 | -8/Mines | Destroyed by G-47 Trooper with Particle Gun Last Messages --------------- 02563_ Sneak attack on K-01 Serf. 02568_ Sneak attack on T-07 Excavator. 02568_ T-07 Excavator destroyed. 02574_ System corrupted: Energy discharge (-41). 02640_ System corrupted: Energy discharge (-35). 02644_ Sneak attack on T-07 Excavator. 02671_ QZGJA XFV6&XXJQBX7PWUN=PJ7 02695_ System corrupted: Component data lost. 02700_ R-06 Scavenger collects Corrupted Hvy. Laser. 02704_ R-06 Scavenger collects Corrupted Carbon-fiber Leg. 02715_ System corrupted: Substantial component data lost. 02733_ 92VBGMM3I&=JK>A&2PFAHKVJL/7UBABE 02755_ System corrupted: Energy discharge (-25). 02854_ System corrupted: Matter fused (-6). 02903_ EDOAGW VA TC3PQD7KK,AQCGR% 02919_ System corrupted: Substantial component data lost. 02936_ System corrupted: Component data lost. 02965_ System corrupted: Energy discharge (-35). 03017_ System corrupted: IFF burst signal emitted. 03044_ System corrupted: Component data lost. Map ----- +----------------------------------------------------+ | ????????????????????????????# ##?? | | ??????????????????????####### #?? | | ??????????????????????# #?? | | ??????????????????????# ##?? | | ???????? ??????????# ####### # ##??? | | ???????? ??????????# #?????# #####???? | | ???????# ?????????# #?????# #???????? | | ???????# "?????????# #?????# #???????? | | ???????# "?????????# #?????# ###?????? | | ???????# "?????????# #?????# #?????? | | ???????# ????????# #?????# #####?? | | ???????? """???????# #?????### #?? | | ???????? ""????????# #???????##### #?? | | ???????? ""????????# #???????????#% #?? | | ????????? ????????# ##??????????# !#?? | | ????????? ?????????# ##?????????#=!### | | ????????? ?????????# #?????????# % | | ?????????# #?????????# ##????????##! | | ?????????# #????###### ####??????### # | | ?????????# #???## ##t ##????#### # | | ?????????# #???# #???## # | | ?????????# #??## """ #???# | | ?????????# #??# """ #???# | | ?????????# #??# """ #???## =# | | ?????????# g#?## """ #????####=# | | ?????????# g### @ ###### ##???????# # | | ?????????# g ##????#######?####???# ! | | ?????????# ###????????????## ##??### | | ????????## ##??????????????# ##???? | | ?????#### ##??????????????# #???? | | ????## ###????????????# #???? | | ???## ##??????????## ##???? | | ??## #### ##????????## ##????? | | ??# ##??## ##?####### ##?????? | | ??# #????# ### #??????? | | ??# #????## ##??????? | | ?## #?????#### ## ##??????## | | ?# ##???????## ######?????### | | ?# ##???????## ## #?????????## | | ?## #????????###### ##?????????# | | ??## #?????????????#####??????????### | | ???# ##??????????????????????????????### | | ???## ##?????????????????????????????????? | | ?????###??????????????????????????????????? | | ??????????????????????????????????????????? | | ??????????????????????????????????????????? | | | | | | | | | +----------------------------------------------------+ Best States ------------- Heat Dissipation 38 Energy Generation 12 Energy Capacity 265 Matter Stores 300 Matter Capacity 300 Sight Range 18 Robot Scan Range 14 Terrain Scan Density 10 Evasion (%) 40 Targeting Accuracy 5 Recoil Reduction 2 Item Schematics ----------------- None Robot Schematics ------------------ None Fabricated ------------ Nothing Alien Tech Used ----------------- None Achievements -------------- None Challenges ------------ None Game ------ Seed TargetingAssaultCoupler Manual? 0 Play Time 00:20:32 Cumulative 17.5 hours Start 2022.11.10 @ 18:58:58 End 2022.11.10 @ 19:22:34 Sessions 1 Manual Loads 0 Difficulty Rogue Special Mode None Game No. 24 Rogue 24 Adventurer 0 Explorer 0 Win Type - Total 0 Types 0/0/0/0/0/0/0/0/0 Lore% 19 Gallery% 19 Achievement% 14 Wizard Run 0 Options --------- ASCII 0 Keyboard 0 Movement Mouse Keybinds 0 Fullscreen 1 Font 24/Crisp Map View 76x50 Tactical HUD 1 Map Filters NONE Filters NONE Steam 1 RUN: 88a8c401-d89c-494b-8e77-b85d74168e37